bitfinex-derivatives/quotes_BTCF0:USTF0_20250928
["timestamp","ask_amount","ask_price","bid_price","bid_amount"]
[1759063523863,0.53964626,109310.0,109300.0,1.3571063]
[1759063526061,0.53964626,109310.0,109300.0,1.3557863]
[1759063527262,0.53964626,109310.0,109300.0,0.4693863]
[1759063527662,0.53964626,109310.0,109300.0,1.3555063]
[1759063528266,0.53964626,109310.0,109300.0,0.4693863]
[1759063528770,0.53964626,109310.0,109300.0,1.3590663]
[1759063529173,0.53964626,109310.0,109300.0,0.4693863]
[1759063532075,0.56073475,109310.0,109300.0,0.4693863]
[1759063539482,0.16073475,109310.0,109300.0,0.4693863]
[1759063540677,0.16073475,109310.0,109300.0,0.0914463]
[1759063540983,0.52153475,109310.0,109300.0,0.1085863]
[1759063542688,1.01297265,109310.0,109300.0,0.0914463]
[1759063544388,1.89853265,109310.0,109300.0,0.0914463]
[1759063544890,1.89785265,109310.0,109300.0,0.0914463]
[1759063545194,1.89777265,109310.0,109300.0,0.0914463]
[1759063545891,1.89865265,109310.0,109300.0,0.0914463]
[1759063546491,1.89853265,109310.0,109300.0,0.0914463]
[1759063547692,0.92153475,109310.0,109300.0,0.1085863]
[1759063547894,1.04545475,109310.0,109300.0,0.1085863]
[1759063548592,0.16073475,109310.0,109300.0,0.1085863]
[1759063551592,0.16073475,109310.0,109300.0,0.4693863]
[1759063563505,0.13865559,109310.0,109300.0,0.4693863]
[1759063566213,0.1175671,109310.0,109300.0,0.4693863]
[1759063567111,0.13968612,109310.0,109300.0,0.4693863]
[1759063574617,0.10304612,109310.0,109300.0,0.4693863]
[1759063574821,0.0809271,109310.0,109300.0,0.8693863]
[1759063575231,0.0809271,109310.0,109300.0,1.7466663]
[1759063575422,0.0809271,109310.0,109300.0,0.8693863]
[1759063575823,0.0809271,109310.0,109300.0,1.7464663]
[1759063577320,0.0809271,109310.0,109300.0,0.8693863]
[1759063577721,0.1037271,109310.0,109300.0,1.7462263]
[1759063578222,0.1166871,109310.0,109300.0,1.7475463]
[1759063580328,0.208124,109310.0,109300.0,0.4693863]
[1759063580534,0.23024344,109310.0,109300.0,0.1085863]
[1759063581125,0.63024344,109310.0,109300.0,0.0914463]
[1759063581426,0.63024344,109310.0,109300.0,0.1085863]
[1759063582127,0.63024344,109310.0,109300.0,0.0914463]
[1759063582527,0.99104344,109310.0,109300.0,0.0914463]
[1759063584122,0.99104344,109310.0,109300.0,0.1085863]
[1759063585125,0.63024344,109310.0,109300.0,0.1085863]
[1759063585725,0.99104344,109310.0,109300.0,0.1085863]
[1759063587927,0.99104344,109310.0,109290.0,0.3608]
[1759063588134,0.1260053,109300.0,109290.0,0.0914511]
[1759063588332,0.14812474,109300.0,109290.0,0.0914511]
[1759063589629,0.15312474,109300.0,109290.0,0.0914511]
[1759063590731,0.1260136,109290.0,109280.0,0.4693939]
[1759063591938,0.1260136,109290.0,109280.0,0.1085939]
[1759063592535,0.1290136,109290.0,109280.0,0.1085939]
[1759063593437,0.1290136,109290.0,109280.0,0.0914539]
[1759063593640,0.1290136,109290.0,109280.0,0.1085939]
[1759063594144,0.03756,109290.0,109280.0,0.1085939]
[1759063598552,0.003,109290.0,109280.0,1.7439939]
[1759063599553,0.003,109290.0,109280.0,1.3439939]
[1759063602552,0.003,109290.0,109280.0,1.3427539]
[1759063603652,1e-07,109290.0,109280.0,1.7427539]
[1759063605049,1e-07,109290.0,109280.0,0.8693939]
[1759063605243,1e-07,109290.0,109280.0,1.7420339]
[1759063605445,1e-07,109290.0,109280.0,0.8693939]
[1759063605654,1e-07,109290.0,109280.0,1.7424739]
[1759063606153,1e-07,109290.0,109280.0,0.8693939]
[1759063606357,1e-07,109290.0,109280.0,1.7424339]
[1759063609361,1e-07,109290.0,109280.0,0.8693939]
[1759063609556,1e-07,109290.0,109280.0,1.7421139]
[1759063611563,0.0218001,109290.0,109280.0,0.8693939]
[1759063611763,0.0350701,109290.0,109280.0,1.7417539]
[1759063612261,0.0132701,109290.0,109280.0,1.7417539]
[1759063612462,1e-07,109290.0,109280.0,1.7417539]
[1759063614962,1e-07,109290.0,109280.0,1.80758453]
[1759063615258,1e-07,109290.0,109280.0,1.7405939]
[1759063616365,1e-07,109290.0,109280.0,1.7401139]
[1759063617866,0.0218001,109290.0,109280.0,1.7397139]
[1759063618757,0.0350701,109290.0,109280.0,0.8693939]
[1759063618958,0.0350701,109290.0,109280.0,1.7395939]
[1759063619168,0.0350701,109290.0,109280.0,0.8693939]
[1759063619369,0.0350701,109290.0,109280.0,1.7396739]
[1759063620166,0.0350701,109290.0,109280.0,0.4693939]
[1759063620367,0.0350701,109290.0,109280.0,1.3395139]
[1759063622978,0.0350701,109290.0,109280.0,0.4693939]
[1759063623265,0.0350701,109290.0,109280.0,1.3385539]
[1759063625961,0.45659378,109290.0,109280.0,0.4693939]
[1759063626167,0.45659378,109290.0,109280.0,0.1085939]
[1759063626368,0.83949601,109290.0,109280.0,0.0914539]
[1759063626574,0.81797233,109290.0,109280.0,0.0914539]
[1759063626973,0.90942583,109290.0,109280.0,0.0914539]
[1759063628077,0.81797233,109290.0,109280.0,0.1085939]
[1759063629768,0.41797233,109290.0,109280.0,0.1085939]
[1759063631776,0.41794903,109290.0,109280.0,0.1085939]
[1759063634579,0.05714903,109290.0,109280.0,0.1085939]
[1759063637473,0.14860253,109290.0,109280.0,0.1085939]
[1759063637882,0.05714903,109290.0,109280.0,0.1085939]
[1759063639972,0.14860253,109290.0,109280.0,0.1085939]
[1759063640281,0.50940253,109290.0,109280.0,0.1085939]
[1759063642775,0.05714903,109290.0,109280.0,0.4693939]
[1759063642980,0.0350701,109290.0,109280.0,0.4693939]
[1759063652078,0.0357301,109290.0,109280.0,0.4693939]
[1759063652274,0.0357301,109290.0,109280.0,1.3324339]
[1759063652787,0.0357301,109290.0,109280.0,1.3323939]
[1759063654286,0.05722011,109290.0,109280.0,0.4693939]
[1759063657885,0.0357301,109290.0,109280.0,0.4693939]
[1759063663695,1e-07,109290.0,109280.0,0.4801039]
[1759063663991,1e-07,109290.0,109280.0,0.8801039]
[1759063666894,1e-07,109290.0,109280.0,1.7397839]
[1759063667082,1e-07,109290.0,109280.0,0.8801039]
[1759063667282,1e-07,109290.0,109280.0,1.7397839]
[1759063669491,1e-07,109290.0,109280.0,0.8801039]
[1759063669688,0.0361001,109290.0,109280.0,0.8693939]
[1759063670291,0.0361001,109290.0,109280.0,1.7296339]
[1759063671596,0.0361001,109290.0,109280.0,0.8693939]
[1759063671796,0.0361001,109290.0,109280.0,1.7296339]
[1759063673488,0.0361001,109290.0,109280.0,1.7292339]
[1759063673684,0.0361001,109290.0,109280.0,0.8693939]
[1759063673894,0.0361001,109290.0,109280.0,1.7292339]
[1759063674792,0.0361001,109290.0,109280.0,0.8693939]
[1759063674992,0.0361001,109290.0,109280.0,1.7305139]
[1759063675196,0.0128101,109290.0,109280.0,1.7305139]
[1759063675797,0.0128101,109290.0,109280.0,1.79634453]
[1759063676595,0.0361001,109290.0,109280.0,1.79622453]
[1759063677297,0.0128101,109290.0,109280.0,1.79622453]
[1759063677799,0.0128101,109290.0,109280.0,0.93522453]
[1759063678000,0.0128101,109290.0,109280.0,1.79586453]
[1759063678597,0.0361001,109290.0,109280.0,0.53522453]
[1759063678800,0.0361001,109290.0,109280.0,0.4693939]
[1759063679001,0.4361001,109290.0,109280.0,1.3295939]
[1759063683593,0.4361001,109290.0,109280.0,0.9687939]
[1759063684708,0.45821611,109290.0,109280.0,0.9687939]
[1759063685705,0.45821611,109290.0,109280.0,0.1085939]
[1759063685905,0.91047061,109290.0,109280.0,0.0914539]
[1759063687108,0.1275628,109280.0,109270.0,0.0914652]
[1759063687300,0.17127869,109280.0,109270.0,0.0914652]
[1759063688610,0.17127869,109280.0,109270.0,0.1086052]
[1759063689814,0.17127869,109280.0,109270.0,0.1116052]
[1759063690008,0.17127869,109280.0,109270.0,0.0944652]
[1759063691213,0.17124596,109280.0,109270.0,0.0914652]
[1759063691414,0.57124596,109280.0,109270.0,0.0914652]
[1759063691618,0.57324596,109280.0,109270.0,0.0914652]
[1759063692816,0.1268396,109260.0,109250.0,0.4694229]
[1759063693011,0.1268396,109260.0,109250.0,0.1086229]
[1759063693217,0.14890904,109260.0,109250.0,0.1086229]
[1759063694221,0.04444201,109260.0,109250.0,0.1116229]
[1759063695119,0.05044201,109260.0,109250.0,0.4724229]
[1759063696222,0.05644201,109260.0,109250.0,0.4694229]
[1759063697521,0.13120599,109260.0,109250.0,0.4694229]
[1759063704126,0.13120599,109260.0,109250.0,1.3280229]
[1759063705717,0.13120599,109260.0,109250.0,1.3276629]
[1759063708135,0.12212398,109260.0,109250.0,1.7276629]
[1759063708324,0.08676398,109260.0,109250.0,0.8694229]
[1759063708523,0.13011451,109260.0,109250.0,1.7272229]
[1759063708832,0.12083398,109260.0,109250.0,1.7272229]
[1759063709629,0.12083398,109260.0,109250.0,1.7271829]
[1759063709829,0.12083398,109260.0,109250.0,1.7269029]
[1759063710034,0.13019522,109260.0,109250.0,1.7269029]
[1759063710226,0.13019522,109260.0,109250.0,0.8694229]
[1759063710432,0.13019522,109260.0,109250.0,1.7269029]
[1759063711825,0.12083398,109260.0,109250.0,1.7269029]
[1759063714432,0.12083398,109260.0,109250.0,1.7266229]
[1759063715431,0.09946398,109260.0,109250.0,0.8694229]
[1759063715632,0.12083398,109260.0,109250.0,1.7266229]
[1759063715934,0.12083398,109260.0,109250.0,0.4694229]
[1759063716135,0.14292733,109260.0,109250.0,0.9660229]
[1759063716826,0.14292733,109260.0,109250.0,0.1086229]
[1759063717029,0.14292733,109260.0,109250.0,0.9660629]
[1759063718031,0.14292733,109260.0,109250.0,0.9660229]
[1759063719334,0.14292733,109260.0,109250.0,0.9659429]
[1759063719836,0.14292733,109260.0,109250.0,0.1086229]
[1759063723634,0.14292733,109260.0,109250.0,0.4694229]
[1759063731238,0.1429351,109260.0,109250.0,0.4694229]
[1759063732743,0.14293459,109260.0,109250.0,0.4694229]
[1759063745143,0.164391,109260.0,109250.0,0.1086229]
[1759063745337,0.2558706,109260.0,109250.0,0.1086229]
[1759063747156,0.164391,109260.0,109250.0,0.1086229]
[1759063749750,0.12156459,109260.0,109250.0,0.8694229]
[1759063750047,0.08676398,109260.0,109250.0,0.93525353]
[1759063750254,0.08676398,109260.0,109250.0,0.8694229]
[1759063750450,0.10970398,109260.0,109250.0,0.8694229]
[1759063750650,0.12241398,109260.0,109250.0,0.8694229]
[1759063754853,0.03389,109290.0,109280.0,0.0914629]
[1759063755156,0.01281,109290.0,109280.0,1.3096229]
[1759063755360,0.01281,109290.0,109280.0,1.3098629]
[1759063756159,0.02281,109290.0,109280.0,1.3098629]
[1759063756948,0.02281,109290.0,109280.0,0.4522629]
[1759063757149,0.02281,109290.0,109280.0,1.3105829]
[1759063757352,0.03281,109290.0,109280.0,1.3105829]
[1759063757554,0.03281,109290.0,109280.0,0.4522629]
[1759063757754,0.03281,109290.0,109280.0,1.3106629]
[1759063758655,0.03281,109290.0,109280.0,0.4522629]
[1759063758961,0.03281,109290.0,109280.0,1.3106629]
[1759063759162,0.03281,109290.0,109280.0,0.4522629]
[1759063759363,0.03281,109290.0,109280.0,1.3106629]
[1759063759549,0.05389,109290.0,109280.0,1.3106629]
[1759063760950,0.05389,109290.0,109280.0,0.4522629]
[1759063761350,0.05389,109290.0,109280.0,1.3105429]
[1759063761351,0.45389,109290.0,109280.0,1.3105429]
[1759063762563,0.45389,109290.0,109280.0,0.4522629]
[1759063762771,0.45389,109290.0,109280.0,1.3112629]
[1759063763965,0.45389,109290.0,109280.0,0.9504629]
[1759063766168,0.83673678,109290.0,109280.0,0.0914628]
[1759063766561,0.92819128,109290.0,109280.0,0.0914628]
[1759063770566,0.0346,109270.0,109260.0,0.0914722]
[1759063770765,0.1260712,109270.0,109260.0,0.0914722]
[1759063771069,0.50892315,109270.0,109260.0,0.0914722]
[1759063771269,0.5814045,109270.0,109260.0,0.0914722]
[1759063771971,0.5874045,109270.0,109260.0,0.0914722]
[1759063772172,0.5934045,109270.0,109260.0,0.0914722]
[1759063775369,0.5019333,109270.0,109260.0,0.0914722]
[1759063778472,0.1411333,109270.0,109260.0,0.0914722]
[1759063778973,0.11908135,109270.0,109260.0,0.4522722]
[1759063780162,0.11908135,109270.0,109260.0,0.0914722]
[1759063784281,0.14112713,109270.0,109260.0,0.0914722]
[1759063789183,0.23259833,109270.0,109260.0,0.0914722]
[1759063790379,0.14112713,109270.0,109260.0,0.0914722]
[1759063794192,0.04682578,109270.0,109260.0,0.8522722]
[1759063794391,0.04699,109270.0,109260.0,0.8522722]
[1759063794587,0.04699,109270.0,109260.0,1.7100722]
[1759063794887,0.06909322,109270.0,109260.0,0.8522722]
[1759063795191,0.06909247,109270.0,109260.0,1.3108322]
[1759063795388,0.06909247,109270.0,109260.0,0.4522722]
[1759063795589,0.06909247,109270.0,109260.0,1.3108322]
[1759063795790,0.06909247,109270.0,109260.0,0.4522722]
[1759063796092,0.06909247,109270.0,109260.0,1.3107922]
[1759063796987,0.06909247,109270.0,109260.0,0.4522722]
[1759063797193,0.06909247,109270.0,109260.0,1.3107922]
[1759063797791,0.14266411,109270.0,109260.0,1.3107922]
[1759063799291,0.14266411,109270.0,109260.0,0.4522722]
[1759063799591,0.14266411,109270.0,109260.0,1.3103522]
[1759063800190,0.14266411,109270.0,109260.0,0.4522722]
[1759063800390,0.23413531,109270.0,109260.0,0.0914722]
[1759063800692,0.14266411,109270.0,109260.0,0.0914722]
[1759063801693,0.14266411,109270.0,109260.0,0.8522722]
[1759063801887,0.12046248,109270.0,109260.0,0.8522722]
[1759063802085,0.09835164,109270.0,109260.0,0.8522722]
[1759063802280,0.12046162,109270.0,109260.0,0.8522722]
[1759063802785,0.14267162,109270.0,109260.0,0.8522722]
[1759063803285,0.12056164,109270.0,109260.0,0.8522722]
[1759063806091,0.09835164,109270.0,109260.0,0.8522722]
[1759063806892,0.12056164,109270.0,109260.0,0.8522722]
[1759063807491,0.02478,109270.0,109260.0,0.8522722]
[1759063808591,0.01278,109280.0,109260.0,0.8522722]
[1759063808592,0.06780649,109300.0,109280.0,0.0914629]
[1759063808787,0.05702369,109300.0,109290.0,0.4522545]
[1759063808987,0.05702369,109300.0,109290.0,1.3118545]
[1759063809289,0.01375,109310.0,109300.0,0.0914461]
[1759063809493,0.03596,109310.0,109300.0,0.4522461]
[1759063809684,0.06701464,109310.0,109300.0,1.3119261]
[1759063809890,0.14027409,109310.0,109300.0,1.3119261]
[1759063810587,0.14927409,109310.0,109300.0,1.3119261]
[1759063811182,0.12718743,109310.0,109300.0,1.3119261]
[1759063812496,0.11818743,109310.0,109300.0,1.3119261]
[1759063812898,0.11918743,109310.0,109300.0,1.3119261]
[1759063813990,0.11918743,109310.0,109300.0,0.4522461]
[1759063814187,0.11918743,109310.0,109300.0,1.3112461]
[1759063817201,0.11918743,109310.0,109300.0,1.3108461]
[1759063820290,0.03696,109310.0,109300.0,1.3108461]
[1759063820596,0.01475,109310.0,109300.0,1.3108461]
[1759063821501,0.01575,109310.0,109300.0,1.3108461]
[1759063822103,0.01375,109310.0,109300.0,1.3108461]
[1759063822298,0.01575,109310.0,109300.0,1.3108461]
[1759063822504,0.01675,109310.0,109300.0,1.3108461]
[1759063823304,0.0376,109310.0,109300.0,0.4522461]
[1759063823494,0.0386,109310.0,109300.0,1.3097661]
[1759063823897,0.0386,109310.0,109300.0,1.3092461]
[1759063824405,0.0386,109310.0,109300.0,0.4522461]
[1759063824602,0.0386,109310.0,109300.0,1.3092461]
[1759063833210,0.0386,109310.0,109300.0,0.0914461]
[1759063833518,0.46066208,109310.0,109300.0,0.9483661]
[1759063833710,0.55209988,109310.0,109300.0,0.0914461]
[1759063837512,0.1260961,109300.0,109290.0,0.0914545]
[1759063837719,0.50895818,109300.0,109290.0,0.0914545]
[1759063838816,0.50895818,109300.0,109290.0,0.0934545]
[1759063843121,0.14815818,109300.0,109290.0,0.0934545]
[1759063843621,0.50895818,109300.0,109290.0,0.0934545]
[1759063849121,0.92986161,109300.0,109290.0,0.00031222]
[1759063849322,1.78670161,109300.0,109290.0,0.00031222]
[1759063850721,0.92986161,109300.0,109290.0,0.09176672]
[1759063850912,1.78670161,109300.0,109290.0,0.09176672]
[1759063851325,0.92986161,109300.0,109290.0,0.09176672]
[1759063851522,1.78670161,109300.0,109290.0,0.09176672]
[1759063851717,0.16906161,109300.0,109290.0,0.09176672]
[1759063851918,0.16906171,109300.0,109290.0,0.09176672]
[1759063852426,0.05671208,109300.0,109290.0,0.09176672]
[1759063853018,0.14815828,109300.0,109290.0,0.09176672]
[1759063853424,0.05671208,109300.0,109290.0,0.09176672]
[1759063855023,0.05671208,109300.0,109290.0,0.45256672]
[1759063858432,0.05671208,109300.0,109290.0,0.85256672]
[1759063858639,0.05671208,109300.0,109290.0,1.70928672]
[1759063858823,0.05671208,109300.0,109290.0,0.85256672]
[1759063859129,0.05671208,109300.0,109290.0,1.70928672]
[1759063859733,0.05671208,109300.0,109290.0,0.85256672]
[1759063859925,0.05671208,109300.0,109290.0,1.70928672]
[1759063861335,0.05671208,109300.0,109290.0,0.85256672]
[1759063861538,0.05671208,109300.0,109290.0,1.70928672]
[1759063862637,0.05671208,109300.0,109290.0,0.85256672]
[1759063862935,0.05671208,109300.0,109290.0,1.70920672]
[1759063863934,0.01375,109310.0,109300.0,0.0914453]
[1759063864241,0.05794009,109310.0,109300.0,1.3088453]
[1759063864735,0.02210009,109310.0,109300.0,1.7088453]
[1759063864942,0.08511585,109320.0,109310.0,0.0914369]
[1759063865238,0.08511585,109320.0,109310.0,1.3088369]
[1759063865940,0.01375,109320.0,109310.0,1.3088369]
[1759063866239,0.01775,109320.0,109310.0,0.4522369]
[1759063866441,0.02175,109320.0,109310.0,1.3087969]
[1759063867539,0.02175,109320.0,109310.0,0.4522369]
[1759063867735,0.02175,109320.0,109310.0,1.3087569]
[1759063868744,0.02175,109320.0,109310.0,1.3087169]
[1759063869943,0.02175,109320.0,109310.0,1.3086769]
[1759063870235,0.02175,109320.0,109310.0,1.7086769]
[1759063870439,0.02175,109320.0,109310.0,0.8522369]
[1759063870640,0.02175,109320.0,109310.0,1.7086769]
[1759063870943,0.04384,109320.0,109310.0,1.7086769]
[1759063871142,0.04384,109320.0,109310.0,0.8522369]
[1759063871338,0.04184,109320.0,109310.0,1.7086769]
[1759063871535,0.03984,109320.0,109310.0,1.7086769]
[1759063871936,0.03984,109320.0,109310.0,1.7086369]
[1759063874243,0.03984,109320.0,109310.0,0.8522369]
[1759063874444,0.03984,109320.0,109310.0,1.7086369]
[1759063874945,0.03984,109320.0,109310.0,1.7085969]
[1759063876543,0.01775,109320.0,109310.0,1.7085969]
[1759063876841,0.03992,109320.0,109310.0,0.8522369]
[1759063877046,0.03992,109320.0,109310.0,1.7085969]
[1759063878948,0.03992,109320.0,109310.0,1.7085569]
[1759063880351,0.01775,109320.0,109310.0,1.7085569]
[1759063881440,0.01775,109320.0,109310.0,0.8522369]
[1759063881636,0.03911,109320.0,109310.0,0.8522369]
[1759063881840,0.03911,109320.0,109310.0,1.3085169]
[1759063886648,0.01775,109320.0,109310.0,1.3085169]
[1759063887444,0.03971268,109320.0,109310.0,1.3085169]
[1759063887946,0.06107268,109320.0,109310.0,1.3084369]
[1759063890753,0.06107268,109320.0,109310.0,0.4522369]
[1759063890952,0.06107268,109320.0,109310.0,1.3083969]
[1759063891356,0.03911,109320.0,109310.0,1.3083969]
[1759063891654,0.06109237,109320.0,109310.0,1.3083969]
[1759063893151,0.06109237,109320.0,109310.0,0.0914369]
[1759063893152,0.55252087,109320.0,109310.0,0.0914369]
[1759063893351,0.55252087,109320.0,109310.0,0.9475969]
[1759063893951,0.55252087,109320.0,109310.0,0.9475569]
[1759063898856,0.46109237,109320.0,109310.0,0.9475569]
[1759063899061,0.46109237,109320.0,109310.0,1.3083569]
[1759063899567,0.06109237,109320.0,109310.0,1.3083569]
[1759063899867,0.06109237,109320.0,109310.0,0.9475569]
[1759063900060,0.15252077,109320.0,109310.0,0.9475569]
[1759063903169,0.15252077,109320.0,109310.0,0.0914369]
[1759063903368,0.15252077,109320.0,109310.0,0.9474769]
[1759063906167,0.06109237,109320.0,109310.0,0.9474769]
[1759063907269,0.15252057,109320.0,109310.0,0.9474769]
[1759063908270,0.06109237,109320.0,109310.0,0.9474769]
[1759063912471,0.06109237,109320.0,109310.0,0.0914369]
[1759063912678,0.06109237,109320.0,109310.0,0.9473169]
[1759063914178,0.06109237,109320.0,109310.0,1.3081169]
[1759063921578,0.06109237,109320.0,109310.0,1.3079169]
[1759063923977,0.06109237,109320.0,109310.0,0.9471169]
[1759063924374,0.06109237,109320.0,109310.0,0.0914369]
[1759063924578,0.06109237,109320.0,109310.0,0.9470369]
[1759063926979,0.06109237,109320.0,109310.0,0.9469969]
[1759063927783,0.06109237,109320.0,109310.0,0.0914369]
[1759063927982,0.06109237,109320.0,109310.0,0.9469569]
[1759063928680,0.15252237,109320.0,109310.0,0.0914384]
[1759063941585,0.30452237,109320.0,109310.0,0.0914384]
[1759063941887,0.15252237,109320.0,109310.0,0.0914384]
[1759063942886,0.51332237,109320.0,109310.0,0.0914384]
[1759063956991,0.06109237,109320.0,109310.0,0.0914384]
[1759063957191,0.06109237,109320.0,109310.0,0.8522384]
[1759063957494,0.03973237,109320.0,109310.0,0.8522384]
[1759063957689,0.02598237,109320.0,109310.0,0.8522384]
[1759063957889,0.004,109320.0,109310.0,0.8522384]
[1759063959497,0.004,109320.0,109310.0,0.4522384]
[1759063960701,0.10986122,109330.0,109320.0,0.0914307]
[1759063960997,0.13177607,109330.0,109320.0,1.3067107]
[1759063961585,0.01750213,109340.0,109320.0,1.7067107]
[1759063961786,0.03478102,109340.0,109330.0,0.4522223]
[1759063962194,0.05687102,109340.0,109330.0,0.4522223]
[1759063962493,0.05687102,109340.0,109330.0,1.3066223]
[1759063962692,0.06138923,109340.0,109330.0,0.4522223]
[1759063962897,0.06138923,109340.0,109330.0,1.3066223]
[1759063963097,0.06638923,109340.0,109330.0,1.3066223]
[1759063964202,0.06938923,109340.0,109330.0,1.3066223]
[1759063964499,0.06938923,109340.0,109330.0,1.3065823]
[1759063965399,0.04747821,109340.0,109330.0,1.3065823]
[1759063966287,0.04296,109340.0,109330.0,1.3065823]
[1759063967098,0.04296,109340.0,109330.0,1.3064223]
[1759063968600,0.0475059,109340.0,109330.0,1.3064223]
[1759063970900,0.12179834,109340.0,109330.0,1.3064223]
[1759063977999,0.08229244,109340.0,109330.0,1.7064223]
[1759063978204,0.02987059,109340.0,109330.0,0.8522223]
[1759063978404,0.02987059,109340.0,109330.0,1.7059423]
[1759063980201,0.02987059,109340.0,109330.0,0.8522223]
[1759063980504,0.02987059,109340.0,109330.0,1.7059423]
[1759063981399,0.008,109340.0,109330.0,1.7059423]
[1759063982595,0.02988052,109340.0,109330.0,1.7059423]
[1759063982797,0.008,109340.0,109330.0,1.7059423]
[1759063984204,0.04433,109340.0,109330.0,1.3057823]
[1759063984395,0.06622161,109340.0,109330.0,1.3057823]
[1759063985706,0.06622161,109340.0,109330.0,1.3057023]
[1759063987106,0.06622161,109340.0,109330.0,1.3056623]
[1759063987508,0.06622161,109340.0,109330.0,0.4522223]
[1759063987695,0.06622161,109340.0,109330.0,1.3056223]
[1759063988100,0.15763611,109340.0,109330.0,0.4522223]
[1759063988301,0.91843611,109340.0,109330.0,0.9447823]
[1759063988505,0.91843611,109340.0,109330.0,0.0914223]
[1759063988702,0.91843611,109340.0,109330.0,0.9447823]
[1759063989203,0.91843611,109340.0,109330.0,0.0914223]
[1759063989404,0.91843611,109340.0,109330.0,0.9447823]
[1759063991808,0.91843611,109340.0,109330.0,0.0914223]
[1759063992005,0.91843611,109340.0,109330.0,0.9447023]
[1759063993604,0.91843611,109340.0,109330.0,0.0914223]
[1759063993811,0.91843611,109340.0,109330.0,0.9447023]
[1759063994212,0.91843611,109340.0,109330.0,0.0914223]
[1759063996209,0.91847269,109340.0,109330.0,0.0914223]
[1759064004116,0.91846734,109340.0,109330.0,0.0914223]
[1759064004812,0.82705284,109340.0,109330.0,0.0914223]
[1759064005213,0.46625284,109340.0,109330.0,0.0914223]
[1759064007810,0.55766734,109340.0,109330.0,0.0914223]
[1759064008013,0.46625284,109340.0,109330.0,0.0914223]
[1759064016025,0.46625284,109340.0,109330.0,0.4522223]
[1759064017024,0.06625284,109340.0,109330.0,0.4522223]
[1759064019037,0.06625284,109340.0,109330.0,1.3047823]
[1759064020538,0.06625284,109340.0,109330.0,0.4522223]
[1759064020841,0.06625284,109340.0,109330.0,1.3047823]
[1759064021838,0.06625284,109340.0,109330.0,1.3047023]
[1759064022937,0.06625284,109340.0,109330.0,1.3046623]
[1759064029638,0.06625284,109340.0,109330.0,1.3044623]
[1759064030943,0.04358284,109340.0,109330.0,1.3044623]
[1759064033339,4e-08,109340.0,109330.0,1.7044623]
[1759064033547,0.03749378,109360.0,109340.0,0.091415]
[1759064033751,0.01546378,109360.0,109350.0,1.3043266]
[1759064034050,0.09026176,109360.0,109350.0,1.3043266]
[1759064034845,0.09326176,109360.0,109350.0,1.3043266]
[1759064035740,0.09526176,109360.0,109350.0,1.3043266]
[1759064036946,0.09226176,109360.0,109350.0,1.3043266]
[1759064040651,0.00368378,109360.0,109350.0,2.0651266]
[1759064041248,0.01790691,109370.0,109350.0,2.0651266]
[1759064041549,0.01790691,109370.0,109360.0,1.3039983]
[1759064042049,0.01254059,109370.0,109360.0,1.3039983]
[1759064042547,0.01454059,109370.0,109360.0,1.3039983]
[1759064042949,0.01454059,109370.0,109360.0,0.4521983]
[1759064043152,0.01454059,109370.0,109360.0,1.3039583]
[1759064044050,0.01454059,109370.0,109360.0,0.4521983]
[1759064044249,0.03657059,109370.0,109360.0,1.3039183]
[1759064044750,0.03657059,109370.0,109360.0,0.4521983]
[1759064044951,0.03657059,109370.0,109360.0,1.3038383]
[1759064045151,0.03657059,109370.0,109360.0,0.4521983]
[1759064045450,0.03657059,109370.0,109360.0,1.3037983]
[1759064045846,0.04191641,109370.0,109360.0,1.3037983]
[1759064047053,0.04191641,109370.0,109360.0,0.4521983]
[1759064047251,0.04191641,109370.0,109360.0,1.3037583]
[1759064047648,0.04191641,109370.0,109360.0,0.4521983]
[1759064047953,0.04191641,109370.0,109360.0,1.3037183]
[1759064048350,0.04191641,109370.0,109360.0,0.4521983]
[1759064048655,0.04191641,109370.0,109360.0,0.9428783]
[1759064049053,0.0636952,109370.0,109360.0,0.9428783]
[1759064050758,0.0636952,109370.0,109360.0,0.9427983]
[1759064054152,0.0636952,109370.0,109360.0,1.3035983]
[1759064057165,0.0636952,109370.0,109360.0,0.4521983]
[1759064057357,0.0636952,109370.0,109360.0,1.3033583]
[1759064062467,0.03631938,109370.0,109360.0,1.3033583]
[1759064062769,9e-08,109370.0,109360.0,1.7033583]
[1759064062967,0.01278,109390.0,109380.0,0.0913816]
[1759064063168,0.01278,109390.0,109380.0,1.3031416]
[1759064063371,0.07290318,109400.0,109390.0,0.0913732]
[1759064063869,0.04001669,109400.0,109390.0,0.0913732]
[1759064064470,0.04001669,109400.0,109390.0,0.9422932]
[1759064064670,0.04001669,109400.0,109390.0,0.4521732]
[1759064064870,0.04001669,109400.0,109390.0,1.3030532]
[1759064065871,0.04001669,109400.0,109390.0,0.4521732]
[1759064066172,0.04001669,109400.0,109390.0,1.3030132]
[1759064066374,0.89218159,109400.0,109390.0,0.0913732]
[1759064066776,0.9669155,109400.0,109390.0,0.0913732]
[1759064074676,0.98862768,109400.0,109390.0,0.0913732]
[1759064079173,0.58862768,109400.0,109390.0,0.0913732]
[1759064079573,0.58862768,109400.0,109370.0,0.4521869]
[1759064079778,0.1259816,109380.0,109370.0,0.0913899]
[1759064079982,0.14769378,109380.0,109370.0,0.0913899]
[1759064102690,0.05631218,109380.0,109370.0,0.4521899]
[1759064102894,0.05631218,109380.0,109370.0,0.0913899]
[1759064103095,0.14769378,109380.0,109370.0,0.0913899]
[1759064111606,0.08919867,109380.0,109370.0,0.0913899]
[1759064115618,0.18058027,109380.0,109370.0,0.0913899]
[1759064121414,0.14769378,109380.0,109370.0,0.0913899]
[1759064124424,0.05631218,109380.0,109370.0,0.0913899]
[1759064124826,0.14769378,109380.0,109370.0,0.0913899]
[1759064126724,0.05631218,109380.0,109370.0,0.0913899]
[1759064129622,0.14769378,109380.0,109360.0,0.543588]
[1759064129928,0.03494,109370.0,109360.0,0.4521937]
[1759064130118,0.05665218,109370.0,109360.0,0.4521937]
[1759064130718,0.14804208,109370.0,109360.0,0.4521937]
[1759064131821,0.14804208,109370.0,109360.0,0.0913937]
[1759064139227,0.03494,109360.0,109350.0,0.452205]
[1759064139520,0.01387,109370.0,109360.0,0.0913983]
[1759064139726,0.86157,109380.0,109370.0,0.0913899]
[1759064139727,0.01357,109380.0,109370.0,0.0913899]
[1759064139927,0.03526581,109380.0,109370.0,0.0913899]
[1759064140333,0.05633581,109380.0,109370.0,0.0913899]
[1759064142334,0.14771741,109380.0,109370.0,0.0913899]
[1759064146232,0.05633581,109380.0,109370.0,0.0913899]
[1759064148138,0.05633581,109380.0,109370.0,0.4521899]
[1759064155340,0.05633581,109380.0,109370.0,1.2995099]
[1759064155744,0.05633581,109380.0,109370.0,0.4521899]
[1759064155941,0.03526581,109380.0,109370.0,1.2994699]
[1759064156135,0.37437,109390.0,109370.0,0.99289049]
[1759064156136,0.01357,109390.0,109370.0,0.99289049]
[1759064156340,0.01357,109390.0,109380.0,0.4521816]
[1759064156742,0.01357,109390.0,109380.0,1.2994216]